Cogmind - Beta 15 @@@ ROGUE MODE // 2025.09.18 @ 18:33:51 Player: ultra Result: Destroyed by D-53 Grenadier with Mini Grenade Launcher Performance ------------- Evolutions (0) 0 Regions Visited (2) 400 Robots Destroyed (20) 100 Value Destroyed (364) 364 Prototype IDs (0) 0 Alien Tech Used (0) 0 Bonus (0) 0 TOTAL SCORE: 864 Bonus ------- None Cogmind --------- Core Integrity 0/250 Matter 300/300 Energy 100/100 System Corruption 1% Temperature Cool (0) Movement Core (350) Ox6 Location -10/Mines Parts ------- > --- POWER (1) -------- (None) > --- PROPULSION (2) --- (None) > --- UTILITY (2) ------ Large Storage Unit Sensor Array > --- WEAPON (2) ------- (None) > --- INVENTORY (15) --- Aluminum Leg Aluminum Leg Light Armor Plating Improved Light Cannon Improved Light Cannon Peak State ------------ > --- POWER ------------ Light Nuclear Core > --- PROPULSION ------- Light Treads Light Treads > --- UTILITY ---------- Large Storage Unit Sensor Array > --- WEAPON ----------- Improved Light Cannon Improved Light Cannon > --- INVENTORY -------- Light Ion Engine Aluminum Leg Aluminum Leg Light Armor Plating Improved Light Cannon Improved Light Cannon [Rating: 11] Favorites ----------- Power Ion Engine Engine Ion Engine Power Core Light Nuclear Core Propulsion Light Treads Treads Light Treads Utility Large Storage Unit Device Sensor Array Storage Large Storage Unit Processor Visual Processing Unit Weapon Improved Light Cannon Energy Gun Medium Laser Ballistic Gun Light Assault Rifle Ballistic Cannon Improved Light Cannon Build | -11 -10 -10 ------- Run | Yrd Mat Min Slots Evolved . | . . . Power . | . . . Propulsion . | . . . Utility . | . . . Weapon . | . . . Parts Attached 13 | 5 7 1 Power 3 | 1 1 1 Engine 2 | 1 1 . Core 1 | . . 1 Reactor . | . . . Propulsion 2 | 2 . . Treads 2 | 2 . . Leg . | . . . Wheel . | . . . Hover . | . . . Flight . | . . . Utility 4 | 1 3 . Device 1 | . 1 . Storage 2 | 1 1 . Processor 1 | . 1 . Hackware . | . . . Protection . | . . . Artifact . | . . . Weapon 4 | 1 3 . Energy Gun 1 | . 1 . Energy Cannon . | . . . Ballistic Gun 1 | 1 . . Ballistic Cannon 2 | . 2 . Launcher . | . . . Special Weapon . | . . . Impact Weapon . | . . . Slashing Weapon . | . . . Piercing Weapon . | . . . Special Melee Weapon . | . . . Unidentified Prototypes . | . . . Parts Lost 6 | . . 6 Power 2 | . . 2 Propulsion 2 | . . 2 Utility . | . . . Weapon 2 | . . 2 Highest Loss Streak 6 | . . 6 To Critical Strikes . | . . . Average Backups 5 | 3 5 5 Power . | . 1 . Propulsion 1 | 1 2 2 Utility . | . . 1 Weapon 1 | 1 1 2 Tool/Special . | . . . Unused Backups 8 | . 2 6 Power 1 | . . 1 Propulsion 2 | . . 2 Utility 1 | . . 1 Weapon 4 | . 2 2 Tool/Special . | . . . Average Slot Usage (%) 97 | . 96 99 Engine 10 | . 14 1 Core 3 | . . 12 Treads 27 | . 28 27 Device 6 | . 3 14 Storage 14 | . 14 14 Processor 6 | . 9 . Energy Gun 1 | . 2 . Ballistic Gun 2 | . 3 . Ballistic Cannon 22 | . 19 28 Peak Build Rating 11 | 5 10 11 Average Rating 9 | 3 8 10 On Entrance 4 | . 5 9 Naked Turns . | . . . Heaviest Build 34 | 11 33 34 Greatest Support 40 | 40 40 40 Greatest Overweight (x) 7 | . . 7 Average Overweight (x) . | . . . Largest Inventory Capacity 15 | 8 15 15 Average Capacity 13 | 7 13 15 Most Carried 8 | 5 8 6 Average Carried 5 | 3 5 5 Final Capacity 15 | 8 15 15 Final Carried 6 | 5 6 5 Class Distribution -------------------- 100% | Mutant Dominant Class ---------------- Mutant | -10/Materials Mutant | -10/Mines Resources | -11 -10 -10 ----------- Run | Yrd Mat Min Matter Collected 554 | 147 214 193 Remotely . | . . . Salvage Created 351 | . 251 100 Parts 30 | . 25 5 Haulers Intercepted . | . . . Recyclers Shooed . | . . . Parts Field Recycled . | . . . Retrieved Matter . | . . . Parts Self-Destructed . | . . . Prevented . | . . . Kills | -11 -10 -10 ------- Run | Yrd Mat Min Combat Hostiles Destroyed 18 | . 12 6 Guns 3 | . 3 . Cannons 15 | . 9 6 Classes Destroyed 5 | . 4 1 Builder 1 | . 1 . Watcher 2 | . 2 . Swarmer 11 | . 8 3 Grunt 6 | . 4 2 Assembled 1 | . . 1 Best Kill Streak 6 | . 6 3 Combat Bots Only 4 | . 4 3 Max Kills in Single Turn 1 | . 1 1 Gunslinging . | . . . Exploded . | . . . Melee . | . . . Uniques/NPCs Destroyed . | . . . Combat | -11 -10 -10 -------- Run | Yrd Mat Min Hostile Shots Fired 98 | . 62 36 Missed 26 | . 16 10 Hits 72 | . 46 26 Projectile 72 | . 46 26 AOE 12 | . . 12 Critical Strikes 1 | . 1 . Damage Taken 1058 | . 419 639 Core 274 | . 25 249 Absorbed by Shields . | . . . Core Remaining (%) 100 | 100 . . Volleys Fired 33 | . 23 10 Largest 2 | . 2 2 Hottest 70 | . 70 66 Shots Fired 66 | . 46 20 Gun 12 | . 12 . Cannon 54 | . 34 20 Launcher . | . . . Special . | . . . Kinetic 60 | . 40 20 Thermal 6 | . 6 . Explosive . | . . . Electromagnetic . | . . . Robot Hit Streak 5 | . 5 3 Robot Miss Streak 3 | . 3 2 Penetration Max . | . . . Secondary Targets . | . . . Shots Hit Robots 34 | . 23 11 Core Hits 22 | . 15 7 Critical Kills . | . . . Critical Parts Destroyed . | . . . Critical Strikes 2 | . 2 . Burn 2 | . 2 . Melee Attacks . | . . . Impact . | . . . Slashing . | . . . Piercing . | . . . Sneak Attacks . | . . . Combat Hostiles . | . . . Follow-up Attacks . | . . . Damage Inflicted 688 | . 445 243 Guns 99 | . 99 . Cannons 587 | . 346 241 Explosions . | . . . Melee . | . . . Ramming 2 | . . 2 Kinetic 625 | . 384 241 Thermal 61 | . 61 . Explosive . | . . . Electromagnetic . | . . . Impact . | . . . Slashing . | . . . Piercing . | . . . Highest Corruption 1 | . 1 1 Average Corruption 1 | . 1 1 Corruption Purged . | . . . Corruption Blocked . | . . . Effects 2 | . . 2 Message Errors 1 | . . 1 Matter Fused 1 | . . 1 Overload Shots . | . . . Overflow Damage 8 | . . 8 Projectiles 8 | . . 8 Explosions . | . . . Melee . | . . . Knockbacks 5 | . 4 1 Impact . | . . . Kinetic 5 | . 4 1 Secondary . | . . . Self-Inflicted Damage . | . . . Shots . | . . . Rammed 1 | . . 1 Targets Rammed 1 | . . 1 Kicked . | . . . Crushed . | . . . Highest Temperature 60 | . 60 60 Average Temperature 20 | . 18 23 Received Heat Transfer 48 | . 12 36 Siege Activations . | . . . Martial Activations . | . . . Shielding Activations . | . . . Robots Disrupted . | . . . Combat Hostiles . | . . . Robots Corrupted . | . . . Combat Hostiles . | . . . Parts Fried . | . . . Impact Corruptions . | . . . Robots Melted . | . . . Combat Hostiles . | . . . Parts Melted . | . . . Heat Transferred 333 | . 333 . Parts Sabotaged . | . . . Parts Stolen . | . . . Parts Stripped . | . . . Power Chain Reactions . | . . . Alert | -11 -10 -10 ------- Run | Yrd Mat Min Maximum Alert Level . | . . . Low Security (%) 100 | 100 100 100 Level 1 . | . . . Level 2 . | . . . Level 3 . | . . . Level 4 . | . . . Level 5 . | . . . High Security . | . . . Max Security . | . . . Peak Influence 163 | . 163 75 Initial 23 | . . 23 Average 51 | . 65 29 Influence Increases 480 | . 357 123 Destroy 0b10 Robot/C 340 | . 240 100 Destroy 0b10 Robot/NC 15 | . 15 . Destroy Leader 74 | . 54 20 Successful Hack 14 | . 14 . Destroy Structure 7 | . 4 3 Lose Combat Pursuer 30 | . 30 . Influence Decreases 480 | . 296 184 Entered New Map 38 | . . 38 Time Decay 442 | . 296 146 Squads Dispatched 4 | . 4 . Investigation 2 | . 2 . Extermination . | . . . Reinforcement 2 | . 2 . Assault . | . . . Garrison . | . . . Intercept . | . . . Searches Triggered . | . . . Construction Impeded . | . . . Haulers Reinforced . | . . . Active Scanning Responses . | . . . Cargo Convoy Interrupts . | . . . Stealth | -11 -10 -10 --------- Run | Yrd Mat Min Distress Signals 1 | . . 1 Communications Jammed . | . . . Distress Signals . | . . . Times Spotted 28 | . 18 10 Peak Tracking Total 6 | . 6 3 Tactical Retreats 1 | . 1 . Traps | -11 -10 -10 ------- Run | Yrd Mat Min Traps Triggered 2 | . 2 . Indirectly . | . . . Trap Hack Attempts . | . . . Triggered . | . . . Disarmed . | . . . Reprogrammed . | . . . Reused . | . . . Traps Extracted . | . . . Installed . | . . . Triggered . | . . . Machines | -11 -10 -10 ---------- Run | Yrd Mat Min Machines Disabled 1 | . 1 . Max in Single Turn 1 | . 1 . Machines Repaired . | . . . Machines Dismantled . | . . . Machines Sabotaged . | . . . Overloaded Fab Kills . | . . . Hacking | -11 -10 -10 --------- Run | Yrd Mat Min Machines Accessed 5 | . 5 . Terminals 4 | . 4 . Fabricators . | . . . Repair Stations . | . . . Recycling Units 1 | . 1 . Scanalyzers . | . . . Garrison Access . | . . . Total Hacks 15 | . 15 . Successful 10 | . 10 . Failed 5 | . 5 . Catastrophic 1 | . 1 . Database Lockouts . | . . . Manual . | . . . Terminals 14 | . 14 . Fabricators . | . . . Repair Stations . | . . . Recycling Units 1 | . 1 . Scanalyzers . | . . . Garrison Access . | . . . Terminal Hacks 9 | . 9 . Record 4 | . 4 . Branch Access Points 1 | . 1 . Alert Level 1 | . 1 . Maintenance Status 1 | . 1 . Hauler Manifests 1 | . 1 . Zone Layout 1 | . 1 . Fabricator Hacks . | . . . Repair Station Hacks . | . . . Recycling Unit Hacks 1 | . 1 . Report Inventory 1 | . 1 . Scanalyzer . | . . . Garrison Access Hacks . | . . . Unauthorized Hacks . | . . . Terminals . | . . . Fabricators . | . . . Repair Stations . | . . . Recycling Units . | . . . Scanalyzers . | . . . Garrison Access . | . . . Data Cores Recovered . | . . . Used . | . . . Hacking Detections 4 | . 4 . Full Trace Events 1 | . 1 . Feedback Events . | . . . Feedback Blocked . | . . . Robot Schematics Acquired . | . . . Robots Built . | . . . Authchips . | . . . Time . | . . . Total Robot Build Rating . | . . . Part Schematics Acquired . | . . . Parts Built . | . . . Authchips . | . . . Time . | . . . Total Part Build Rating . | . . . Parts Repaired . | . . . Time . | . . . Parts Recycled . | . . . Recycled Matter . | . . . Retrieved Matter . | . . . Retrieved Components . | . . . Parts Scanalyzed . | . . . Part Schematics Acquired . | . . . Parts Damaged . | . . . Bothacking | -11 -10 -10 ------------ Run | Yrd Mat Min Used RIF Installer . | . . . Robots Hacked . | . . . Non-combat . | . . . Combat . | . . . Robot Hacks Applied . | . . . Relay Couplers Released . | . . . Fabnet Peak Effective % . | . . . Robots Rewired . | . . . Allies Hacked . | . . . Hacks Repelled . | . . . Allies | -11 -10 -10 -------- Run | Yrd Mat Min Total Allies . | . . . Largest Group . | . . . Highest-Rated Group . | . . . Highest-Rated Ally . | . . . Total Orders . | . . . Ally Attacks . | . . . Total Damage . | . . . Kills . | . . . Allies Corrupted . | . . . Allies Melted . | . . . Intel | -11 -10 -10 ------- Run | Yrd Mat Min Active Infowar (turns) 1228 | . 835 393 Optics 621 | . 621 . Sensors 607 | . 214 393 Robot Analysis Total . | . . . Derelict Logs Recovered . | . . . Drone Launches . | . . . Drone Recoveries . | . . . Exploration | -11 -10 -10 ------------- Run | Yrd Mat Min Turns Passed 1407 | 85 929 393 Spaces Moved 682 | 47 437 198 Core 3 | 2 . 1 Treads 679 | 45 437 197 Legs . | . . . Wheels . | . . . Hover . | . . . Flight . | . . . Fastest Speed 50 | 50 160 160 Average Speed 160 | 155 160 162 Slowest Speed 400 | 160 160 400 Overloaded Moves . | . . . Propulsion Burnouts . | . . . Robots Hopped . | . . . Potential Cave-ins . | . . . Cave-ins Triggered . | . . . Exploration Rate (%) 36 | 3 68 37 Regions Visited 2 Branch Regions 1 Pre-discovered Areas . | . . . Known Exits Taken 1 | . 1 . Unknown Exits Taken 1 | 1 . . Scrap Searched 1 | . . 1 Spaces Dug . | . . . Terrain Destroyed 7 | . 3 4 Melee . | . . . Projectile 7 | . 3 4 AOE . | . . . Terrain Rammed . | . . . Walls Destroyed . | . . . Machines Disabled . | . . . Actions | -11 -10 -10 --------- Run | Yrd Mat Min Total 931 | 57 624 250 Wait 181 | 1 144 36 Move 680 | 46 436 198 Hop . | . . . Pick Up 13 | 5 7 1 Fast Attach 8 | 5 3 . Attach 4 | . 3 1 Detach . | . . . Swap 2 | . 1 1 Drop 9 | . 7 2 Fire 33 | . 23 10 Melee . | . . . Ram . | . . . Kick . | . . . Crush 1 | . . 1 Escape Stasis . | . . . Rewire . | . . . Trap . | . . . Miscellaneous . | . . . Route ------- -11/Scrapyard -10/Materials (discovered 2 exits: [*Mat] / *Min) -10/Mines History --------- Turn | Location | Event 2 | -11/Scrapyard | Met Revision 17 50 | -11/Scrapyard | Discovered new exit (range 12) 86 | -11/Scrapyard | Entered Materials 306 | -10/Materials | Build established: Mutant 397 | -10/Materials | Discovered new exit (range 17) 571 | -10/Materials | Discovered new exit (range 17) 849 | -10/Materials | Identified exit to Mines 1015 | -10/Materials | Entered Mines 1319 | -10/Mines | Assembled infested the area 1324 | -10/Mines | Assisted by a Guerilla fighting off Assembled 1404 | -10/Mines | Core integrity fell below 50% 1408 | -10/Mines | Core integrity fell below 20% 1408 | -10/Mines | Destroyed by D-53 Grenadier with Mini Grenade Launcher Last Messages --------------- HV Slug penetrates Wall. as-62527 destroyed. HV Slug penetrates Wall. HV Slug penetrates as-61005. as-61005 suffers critical hit (Destroy). Acquired 1 matter. HV Slug penetrates Wall. HV Slug penetrates as-61005. as-61005 suffers critical hit (Destroy). as-61005 destroyed. Acquired 2 matter. Acquired 19 matter. OCTXT &PNC6DOANBD I6G>/DFW5DGG| Lgt. Treads destroyed. Lgt. Nuclear Core destroyed. Imp. Light Cannon destroyed. Lgt. Treads destroyed. Imp. Light Cannon destroyed. Lgt. Ion Engine destroyed. R-06 Scavenger destroyed. Map ----- +----------------------------------------------------+ | ???????????## ##???????? #??????????????????????? | | ???????????# ###?????? #??????????????????????? | | ???????????# ##????# #??????????????????????? | | ???????????# #???## #??????????????????????? | | ???????????# #???# ##?????????????????????? | | ???????????## #???# #?????????????????????? | | ??????????##" ##???# ##????????????????????? | | ??????????# " *= ##????# ##???????????????????? | | ??????????#### ######## #???????????????????? | | ?????????????# ### ## #???????????????????? | | ?????????????# ## #???????????????????? | | ?????????????# ## #???????????????????? | | ?????????????# #???????????????????? | | ?????????????# ##??????????????????? | | ?????????????####### ##?????????????????? | | ?????????????????#### #?????????????????? | | ???????????????### ###### #?????????????????? | | ???# ######## ???### ##?????????????????? | | ???# d ?????# ###??????????????????? | | ???# d ?????# #????????????????????? | | ???# ###### ###### #????????????????????? | | ?????????????????# # ##### #???????? | | ??????????? ?????# [%! ? #???????? | | ??????????? ????# #### #????????????? | | ???????????? ????## #??????????????????? | | ???????????? ???# @ #???????????????????? | | ????????????? ???# #??????????????????? | | ?????????# ?? ??## #??????????????????? | | ???????# ###; ##??????????????????? | | ???????# ##???????????????????? | | ???????# ## ;# ;;## ###????????????????????? | | ???????#?????# ## ;## ##??????????????????????? | | ?????????????# ;; %##?#????????????????????????? | | ?????????????## ! ###?????????????????????????? | | ?????????????# ! ##????????????????????????? | | ?????????????# #????????????????????????? | | #?????????????# ##???????????????????????? | | #????????????## % #???????????????????????? | | #???????????## % % #???????????????????????? | | #???????????# #???????????????????????? | | #???????????# ##???????????????????????? | | #???????????## ##????????????????????????? | | #??######???## ##?????????????????????????? | | #### ##?## #??????????????????????????? | | ## ### ##?????????????????????????? | | #?????????????????????????? | | ### #?????????????????????????? | | ### ###?## #?????????????????????????? | | ##?## ##????# #??#####??????????????????? | | #??## #?????# #### ###????????????????? | +----------------------------------------------------+ Best States ------------- Heat Dissipation 25 Energy Generation 14 Energy Capacity 250 Matter Stores 300 Matter Capacity 300 Sight Range 18 Robot Scan Range 14 Terrain Scan Density 10 Evasion (%) 40 Recoil Reduction 2 Item Schematics ----------------- None Robot Schematics ------------------ None Fabricated ------------ Nothing Repaired ---------- Nothing Alien Tech Used ----------------- None Achievements -------------- One Hack Too Far Shopping List Challenges ------------ None Game ------ Seed DataNeutrinoExtractor Manual? 0 Play Time 00:17:01 Cumulative 2.0 hours Start 2025.09.18 @ 18:16:41 End 2025.09.18 @ 18:33:51 Sessions 1 Manual Loads 0 Difficulty Rogue Special Mode None Game No. 5 Rogue 5 Adventurer 0 Explorer 0 Win Type - Total 0 Types 0/0/0/0/0/0/0/0/0/0 Lore% 0 Gallery% 6 Achievement% 7 Wizard Run 0 Options --------- Layout 0 ASCII 0 Keyboard 0 Movement Mouse Keybinds 0 Fullscreen 1 Font 18/SmallcapsGlow Map View 76x50 Zoom Use 0% Tactical HUD 0 Map Filters NONE Filters NONE Steam 1 RUN: 0aa91433-56a0-4760-8eaf-d9fdd6c9cd3a